[Event "Titled Tuesday Blitz December 20 Late 2022"]
[White "Walentukiewicz, Michal"]
[Black "Torres Dominguez, David"]
[WhiteFideId "1126903"]
[BlackFideId "2220857"]
[WhiteElo "2028"]
[BlackElo "2037"]
[Result "0-1"]
[Round "01"]
[TimeControl "180+1"]
[Date "2022.12.21"]
[WhiteClock "0:01:24"]
[BlackClock "0:00:11"]

1. g3 {[%clk 0:03:00]}  e5 {[%clk 0:02:59]} 2. Bg2 {[%clk 0:03:01]}  Nc6 {[%clk 0:02:57]} 3. c4 {[%clk 0:03:01]}  f5 {[%clk 0:02:57]} 4. Nc3 {[%clk 0:03:02]}  Nf6 {[%clk 0:02:57]} 5. d3 {[%clk 0:03:02]}  Bb4 {[%clk 0:02:56]} 6. Bd2 {[%clk 0:03:02]}  Bxc3 {[%clk 0:02:57]} 7. Bxc3 {[%clk 0:03:03]}  d6 {[%clk 0:02:58]} 8. Nf3 {[%clk 0:03:03]}  O-O {[%clk 0:02:58]} 9. O-O {[%clk 0:03:04]}  Qe8 {[%clk 0:02:57]} 10. b4 {[%clk 0:03:04]}  Qh5 {[%clk 0:02:56]} 11. b5 {[%clk 0:03:04]}  Nd8 {[%clk 0:02:56]} 12. Qb3 {[%clk 0:03:02]}  Kh8 {[%clk 0:02:54]} 13. a4 {[%clk 0:03:01]}  f4 {[%clk 0:02:53]} 14. a5 {[%clk 0:03:01]}  Bh3 {[%clk 0:02:52]} 15. b6 {[%clk 0:02:59]}  axb6 {[%clk 0:02:39]} 16. axb6 {[%clk 0:03:00]}  Rxa1 {[%clk 0:02:39]} 17. Rxa1 {[%clk 0:02:59]}  c5 {[%clk 0:02:35]} 18. Ra8 {[%clk 0:02:43]}  fxg3 {[%clk 0:02:31]} 19. hxg3 {[%clk 0:02:39]}  h6 {[%clk 0:01:50]} 20. Kf1 {[%clk 0:02:12]}  Bxg2+ {[%clk 0:01:49]} 21. Kxg2 {[%clk 0:02:12]}  Ng4 {[%clk 0:01:49]} 22. Qd1 {[%clk 0:02:06]}  Rxf3 {[%clk 0:01:31]} 23. Rxd8+ {[%clk 0:02:06]}  Kh7 {[%clk 0:01:30]} 24. Kxf3 {[%clk 0:01:52]}  Qf5+ {[%clk 0:01:04]} 25. Kg2 {[%clk 0:01:51]}  Qxf2+ {[%clk 0:00:58]} 26. Kh3 {[%clk 0:01:51]}  Qf5 {[%clk 0:00:13]} 27. Kg2 {[%clk 0:01:35]}  Ne3+ {[%clk 0:00:12]} 28. Kg1 {[%clk 0:01:26]}  Nxd1 {[%clk 0:00:12]} 29. Bd2 {[%clk 0:01:27]}  Qf2+ {[%clk 0:00:11]} 30. Kh1 {[%clk 0:01:26]}  Qxe2 {[%clk 0:00:12]} 31. Ba5 {[%clk 0:01:24]}  Qf1+ {[%clk 0:00:12]} 32. Kh2 {[%clk 0:01:24]}  Ne3 {[%clk 0:00:11]} 0-1


[Site "https://www.chess.com"]

[Event "Titled Tuesday Blitz December 20 Late 2022"]
[White "Ward, Ieuan C"]
[Black "Adla, Diego"]
[WhiteFideId "406627"]
[BlackFideId "100072"]
[WhiteElo "2341"]
[BlackElo "2377"]
[Result "1/2-1/2"]
[Round "01"]
[TimeControl "180+1"]
[Date "2022.12.21"]
[WhiteClock "0:00:29"]
[BlackClock "0:00:23"]

1. e4 {[%clk 0:02:59]}  e5 {[%clk 0:02:59]} 2. Nf3 {[%clk 0:02:59]}  Nc6 {[%clk 0:02:59]} 3. Bc4 {[%clk 0:02:59]}  Nf6 {[%clk 0:02:58]} 4. d3 {[%clk 0:02:59]}  Bc5 {[%clk 0:02:58]} 5. c3 {[%clk 0:02:59]}  O-O {[%clk 0:02:58]} 6. O-O {[%clk 0:03:00]}  d6 {[%clk 0:02:56]} 7. a4 {[%clk 0:02:59]}  a5 {[%clk 0:02:56]} 8. h3 {[%clk 0:02:59]}  h6 {[%clk 0:02:52]} 9. Re1 {[%clk 0:02:58]}  Re8 {[%clk 0:02:47]} 10. Nbd2 {[%clk 0:02:58]}  Ne7 {[%clk 0:02:46]} 11. d4 {[%clk 0:02:52]}  exd4 {[%clk 0:02:46]} 12. Nxd4 {[%clk 0:02:50]}  Ng6 {[%clk 0:02:44]} 13. Qb3 {[%clk 0:02:29]}  Ne5 {[%clk 0:02:35]} 14. Bf1 {[%clk 0:02:29]}  Nc6 {[%clk 0:02:33]} 15. Nxc6 {[%clk 0:02:18]}  bxc6 {[%clk 0:02:32]} 16. Qc2 {[%clk 0:02:11]}  Rb8 {[%clk 0:02:18]} 17. Bd3 {[%clk 0:01:54]}  Nd7 {[%clk 0:02:10]} 18. Nb3 {[%clk 0:01:50]}  Bb6 {[%clk 0:02:09]} 19. Be3 {[%clk 0:01:46]}  Ne5 {[%clk 0:02:07]} 20. Bxb6 {[%clk 0:01:44]}  cxb6 {[%clk 0:02:06]} 21. Nd4 {[%clk 0:01:43]}  Nxd3 {[%clk 0:02:03]} 22. Qxd3 {[%clk 0:01:39]}  Qc7 {[%clk 0:01:56]} 23. Rad1 {[%clk 0:01:37]}  Be6 {[%clk 0:01:56]} 24. Nf5 {[%clk 0:01:30]}  Bxf5 {[%clk 0:01:55]} 25. exf5 {[%clk 0:01:30]}  Rxe1+ {[%clk 0:01:55]} 26. Rxe1 {[%clk 0:01:30]}  d5 {[%clk 0:01:50]} 27. f6 {[%clk 0:01:29]}  g6 {[%clk 0:01:48]} 28. Qe3 {[%clk 0:01:21]}  Qd6 {[%clk 0:01:45]} 29. Qe7 {[%clk 0:01:15]}  Rd8 {[%clk 0:01:43]} 30. g4 {[%clk 0:01:08]}  Qxe7 {[%clk 0:01:41]} 31. Rxe7 {[%clk 0:01:05]}  Rd6 {[%clk 0:01:42]} 32. Rb7 {[%clk 0:01:04]}  c5 {[%clk 0:01:41]} 33. Kg2 {[%clk 0:01:00]}  d4 {[%clk 0:01:41]} 34. cxd4 {[%clk 0:00:56]}  cxd4 {[%clk 0:01:41]} 35. Kf1 {[%clk 0:00:55]}  Rxf6 {[%clk 0:01:34]} 36. Rd7 {[%clk 0:00:54]}  Rf4 {[%clk 0:01:32]} 37. Rd6 {[%clk 0:00:50]}  d3 {[%clk 0:01:26]} 38. Rxd3 {[%clk 0:00:50]}  Rxa4 {[%clk 0:01:26]} 39. Rb3 {[%clk 0:00:51]}  Ra1+ {[%clk 0:01:13]} 40. Kg2 {[%clk 0:00:51]}  Kg7 {[%clk 0:01:08]} 41. Rxb6 {[%clk 0:00:51]}  a4 {[%clk 0:01:05]} 42. Rb4 {[%clk 0:00:49]}  Ra2 {[%clk 0:01:03]} 43. Kg3 {[%clk 0:00:48]}  a3 {[%clk 0:01:03]} 44. bxa3 {[%clk 0:00:48]}  Rxa3+ {[%clk 0:01:04]} 45. f3 {[%clk 0:00:48]}  Ra2 {[%clk 0:01:03]} 46. Rb6 {[%clk 0:00:48]}  Ra4 {[%clk 0:01:01]} 47. Rc6 {[%clk 0:00:48]}  Rb4 {[%clk 0:01:00]} 48. Rd6 {[%clk 0:00:48]}  Rb8 {[%clk 0:00:58]} 49. Ra6 {[%clk 0:00:47]}  Re8 {[%clk 0:00:58]} 50. Rb6 {[%clk 0:00:48]}  Re6 {[%clk 0:00:57]} 51. Rxe6 {[%clk 0:00:47]}  fxe6 {[%clk 0:00:57]} 52. Kf4 {[%clk 0:00:48]}  Kf6 {[%clk 0:00:56]} 53. h4 {[%clk 0:00:47]}  e5+ {[%clk 0:00:48]} 54. Ke4 {[%clk 0:00:46]}  Ke6 {[%clk 0:00:48]} 55. g5 {[%clk 0:00:30]}  h5 {[%clk 0:00:43]} 56. f4 {[%clk 0:00:30]}  exf4 {[%clk 0:00:43]} 57. Kxf4 {[%clk 0:00:31]}  Kd5 {[%clk 0:00:43]} 58. Kf3 {[%clk 0:00:28]}  Ke5 {[%clk 0:00:21]} 59. Ke3 {[%clk 0:00:28]}  Kf5 {[%clk 0:00:22]} 60. Kf3 {[%clk 0:00:28]}  Ke5 {[%clk 0:00:22]} 61. Ke3 {[%clk 0:00:29]}  Kf5 {[%clk 0:00:23]} 62. Kf3 {[%clk 0:00:29]}  Ke5 {[%clk 0:00:23]} 1/2-1/2


[Site "https://www.chess.com"]

[Event "Titled Tuesday Blitz December 20 Late 2022"]
[White "White, John S."]
[Black "Urbina Perez, Juan Antonio"]
[WhiteFideId "2502348"]
[BlackFideId "2217368"]
[WhiteElo "1971"]
[BlackElo "2197"]
[Result "0-1"]
[Round "01"]
[TimeControl "180+1"]
[Date "2022.12.21"]
[WhiteClock "0:00:02"]
[BlackClock "0:00:20"]

1. e4 {[%clk 0:02:57]}  c5 {[%clk 0:02:59]} 2. Nf3 {[%clk 0:02:56]}  d6 {[%clk 0:03:00]} 3. c3 {[%clk 0:02:54]}  Nf6 {[%clk 0:03:00]} 4. Be2 {[%clk 0:02:52]}  Nc6 {[%clk 0:03:00]} 5. d4 {[%clk 0:02:50]}  cxd4 {[%clk 0:02:54]} 6. cxd4 {[%clk 0:02:50]}  d5 {[%clk 0:02:54]} 7. e5 {[%clk 0:02:47]}  Ne4 {[%clk 0:02:55]} 8. Nc3 {[%clk 0:02:45]}  Nxc3 {[%clk 0:02:53]} 9. bxc3 {[%clk 0:02:45]}  Bf5 {[%clk 0:02:52]} 10. Bd3 {[%clk 0:02:41]}  Bxd3 {[%clk 0:02:51]} 11. Qxd3 {[%clk 0:02:41]}  e6 {[%clk 0:02:52]} 12. O-O {[%clk 0:02:39]}  Be7 {[%clk 0:02:52]} 13. Re1 {[%clk 0:02:39]}  O-O {[%clk 0:02:53]} 14. Rb1 {[%clk 0:02:37]}  Na5 {[%clk 0:02:50]} 15. Nd2 {[%clk 0:02:20]}  Rc8 {[%clk 0:02:46]} 16. Re3 {[%clk 0:02:06]}  f5 {[%clk 0:02:35]} 17. exf6 {[%clk 0:02:00]}  Rxf6 {[%clk 0:02:35]} 18. Rh3 {[%clk 0:01:58]}  h6 {[%clk 0:02:22]} 19. Nf3 {[%clk 0:01:56]}  Bd6 {[%clk 0:02:18]} 20. Ne5 {[%clk 0:01:50]}  Bxe5 {[%clk 0:02:09]} 21. dxe5 {[%clk 0:01:48]}  Rf5 {[%clk 0:02:07]} 22. Bxh6 {[%clk 0:01:32]}  gxh6 {[%clk 0:02:01]} 23. Rxh6 {[%clk 0:01:30]}  Qg5 {[%clk 0:01:55]} 24. Rxe6 {[%clk 0:01:09]}  Qf4 {[%clk 0:01:44]} 25. f3 {[%clk 0:00:49]}  d4 {[%clk 0:01:12]} 26. cxd4 {[%clk 0:00:26]}  Rc1+ {[%clk 0:00:54]} 27. Rxc1 {[%clk 0:00:26]}  Qxc1+ {[%clk 0:00:55]} 28. Qf1 {[%clk 0:00:24]}  Qe3+ {[%clk 0:00:49]} 29. Qf2 {[%clk 0:00:21]}  Qc1+ {[%clk 0:00:50]} 30. Qf1 {[%clk 0:00:22]}  Qc4 {[%clk 0:00:50]} 31. Qxc4 {[%clk 0:00:17]}  Nxc4 {[%clk 0:00:51]} 32. Re7 {[%clk 0:00:17]}  Rf7 {[%clk 0:00:48]} 33. Rxf7 {[%clk 0:00:13]}  Kxf7 {[%clk 0:00:49]} 34. Kf2 {[%clk 0:00:12]}  Ke6 {[%clk 0:00:49]} 35. Ke2 {[%clk 0:00:11]}  Kd5 {[%clk 0:00:47]} 36. Kd3 {[%clk 0:00:10]}  Nb2+ {[%clk 0:00:48]} 37. Kc2 {[%clk 0:00:10]}  Nc4 {[%clk 0:00:34]} 38. Kd3 {[%clk 0:00:08]}  Nb2+ {[%clk 0:00:32]} 39. Kc2 {[%clk 0:00:07]}  Na4 {[%clk 0:00:29]} 40. h4 {[%clk 0:00:07]}  Nb6 {[%clk 0:00:28]} 41. h5 {[%clk 0:00:07]}  Nd7 {[%clk 0:00:28]} 42. h6 {[%clk 0:00:06]}  Nf8 {[%clk 0:00:29]} 43. g4 {[%clk 0:00:06]}  Ng6 {[%clk 0:00:26]} 44. g5 {[%clk 0:00:05]}  b5 {[%clk 0:00:21]} 45. f4 {[%clk 0:00:05]}  Nxf4 {[%clk 0:00:20]} 46. h7 {[%clk 0:00:03]}  Ng6 {[%clk 0:00:21]} 47. Kb3 {[%clk 0:00:03]}  a5 {[%clk 0:00:21]} 48. a3 {[%clk 0:00:02]}  Nh8 {[%clk 0:00:20]} 0-1


[Site "https://www.chess.com"]

[Event "Titled Tuesday Blitz December 20 Late 2022"]
[White "Winterberg, Lukas"]
[Black "Adel, Sara"]
[WhiteFideId "24622702"]
[BlackFideId "10616764"]
[WhiteElo "2350"]
[BlackElo "1997"]
[Result "1-0"]
[Round "01"]
[TimeControl "180+1"]
[Date "2022.12.21"]
[WhiteClock "0:00:24"]
[BlackClock "0:00:13"]

1. e4 {[%clk 0:02:56]}  c6 {[%clk 0:02:58]} 2. d4 {[%clk 0:02:55]}  d5 {[%clk 0:02:59]} 3. e5 {[%clk 0:02:56]}  Bf5 {[%clk 0:02:59]} 4. h4 {[%clk 0:02:56]}  h5 {[%clk 0:02:59]} 5. Bd3 {[%clk 0:02:55]}  Nh6 {[%clk 0:02:58]} 6. Ne2 {[%clk 0:02:32]}  e6 {[%clk 0:02:55]} 7. Bg5 {[%clk 0:02:31]}  Be7 {[%clk 0:02:55]} 8. Bxe7 {[%clk 0:02:29]}  Qxe7 {[%clk 0:02:54]} 9. Ng3 {[%clk 0:02:29]}  Qb4+ {[%clk 0:02:45]} 10. Nc3 {[%clk 0:01:37]}  Qxb2 {[%clk 0:02:39]} 11. Nce2 {[%clk 0:01:33]}  Bxd3 {[%clk 0:02:28]} 12. cxd3 {[%clk 0:01:34]}  Qb4+ {[%clk 0:02:25]} 13. Kf1 {[%clk 0:01:32]}  b6 {[%clk 0:02:19]} 14. Rc1 {[%clk 0:01:30]}  Ng4 {[%clk 0:02:12]} 15. Kg1 {[%clk 0:01:19]}  g6 {[%clk 0:01:51]} 16. Nf1 {[%clk 0:01:07]}  O-O {[%clk 0:01:48]} 17. f3 {[%clk 0:01:04]}  Nh6 {[%clk 0:01:46]} 18. g4 {[%clk 0:01:01]}  hxg4 {[%clk 0:01:43]} 19. fxg4 {[%clk 0:01:02]}  Nxg4 {[%clk 0:01:42]} 20. h5 {[%clk 0:01:01]}  Kg7 {[%clk 0:01:37]} 21. hxg6 {[%clk 0:00:58]}  Kxg6 {[%clk 0:01:37]} 22. Rb1 {[%clk 0:00:55]}  Qe7 {[%clk 0:01:03]} 23. Nf4+ {[%clk 0:00:54]}  Kf5 {[%clk 0:00:47]} 24. Rh5+ {[%clk 0:00:50]}  Qg5 {[%clk 0:00:33]} 25. Rxg5+ {[%clk 0:00:49]}  Kxg5 {[%clk 0:00:33]} 26. Nh3+ {[%clk 0:00:49]}  Kh4 {[%clk 0:00:33]} 27. Qf3 {[%clk 0:00:46]}  Rg8 {[%clk 0:00:32]} 28. Qg3+ {[%clk 0:00:44]}  Kh5 {[%clk 0:00:31]} 29. Nf4+ {[%clk 0:00:43]}  Kg5 {[%clk 0:00:29]} 30. Ne3 {[%clk 0:00:40]}  Nd7 {[%clk 0:00:24]} 31. Nxg4 {[%clk 0:00:34]}  f5 {[%clk 0:00:21]} 32. Nf6+ {[%clk 0:00:29]}  Kh6 {[%clk 0:00:18]} 33. Nxg8+ {[%clk 0:00:29]}  Kh7 {[%clk 0:00:17]} 34. Ne7 {[%clk 0:00:26]}  Nf8 {[%clk 0:00:15]} 35. Kf2 {[%clk 0:00:26]}  Kh8 {[%clk 0:00:12]} 36. Rh1+ {[%clk 0:00:25]}  Nh7 {[%clk 0:00:13]} 37. Rxh7+ {[%clk 0:00:23]}  Kxh7 {[%clk 0:00:13]} 38. Qg6+ {[%clk 0:00:23]}  Kh8 {[%clk 0:00:13]} 39. Qh6# {[%clk 0:00:24]} 1-0


[Site "https://www.chess.com"]

[Event "Titled Tuesday Blitz December 20 Late 2022"]
[White "Zakhartsov, Vladimir"]
[Black "Ivanov, Mike"]
[WhiteFideId "4145097"]
[BlackFideId "2613158"]
[WhiteElo "2535"]
[BlackElo "2237"]
[Result "1-0"]
[Round "01"]
[TimeControl "180+1"]
[Date "2022.12.21"]
[WhiteClock "0:00:09"]
[BlackClock "0:00:02"]

1. c4 {[%clk 0:02:57]}  e5 {[%clk 0:02:57]} 2. d3 {[%clk 0:02:54]}  d6 {[%clk 0:02:56]} 3. Nc3 {[%clk 0:02:53]}  f5 {[%clk 0:02:56]} 4. g3 {[%clk 0:02:46]}  Nf6 {[%clk 0:02:56]} 5. Bg2 {[%clk 0:02:47]}  Be7 {[%clk 0:02:56]} 6. e3 {[%clk 0:02:46]}  O-O {[%clk 0:02:56]} 7. Nge2 {[%clk 0:02:46]}  Qe8 {[%clk 0:02:55]} 8. b4 {[%clk 0:02:37]}  Nc6 {[%clk 0:02:54]} 9. b5 {[%clk 0:02:35]}  Nd8 {[%clk 0:02:55]} 10. a4 {[%clk 0:02:33]}  a5 {[%clk 0:02:46]} 11. Nd5 {[%clk 0:02:21]}  Nxd5 {[%clk 0:02:43]} 12. cxd5 {[%clk 0:02:22]}  Qh5 {[%clk 0:02:41]} 13. O-O {[%clk 0:02:20]}  Nf7 {[%clk 0:02:33]} 14. f4 {[%clk 0:02:19]}  Bf6 {[%clk 0:02:26]} 15. Ra2 {[%clk 0:02:18]}  Nh6 {[%clk 0:02:17]} 16. Rc2 {[%clk 0:02:16]}  Rf7 {[%clk 0:02:16]} 17. Nc3 {[%clk 0:01:53]}  Qxd1 {[%clk 0:02:08]} 18. Rxd1 {[%clk 0:01:53]}  Bd7 {[%clk 0:02:05]} 19. h3 {[%clk 0:01:36]}  g5 {[%clk 0:01:58]} 20. Kh2 {[%clk 0:01:25]}  Rg7 {[%clk 0:01:55]} 21. Ne2 {[%clk 0:01:21]}  Be8 {[%clk 0:01:50]} 22. Ba3 {[%clk 0:01:16]}  b6 {[%clk 0:01:36]} 23. Rdc1 {[%clk 0:01:15]}  Bh5 {[%clk 0:01:35]} 24. Ng1 {[%clk 0:00:38]}  gxf4 {[%clk 0:01:30]} 25. exf4 {[%clk 0:00:36]}  exf4 {[%clk 0:00:54]} 26. gxf4 {[%clk 0:00:37]}  Bh4 {[%clk 0:00:18]} 27. Bb2 {[%clk 0:00:31]}  Bg3+ {[%clk 0:00:17]} 28. Kh1 {[%clk 0:00:31]}  Rg6 {[%clk 0:00:14]} 29. Rxc7 {[%clk 0:00:25]}  Bxf4 {[%clk 0:00:14]} 30. Rf1 {[%clk 0:00:26]}  Be5 {[%clk 0:00:10]} 31. Bxe5 {[%clk 0:00:13]}  dxe5 {[%clk 0:00:10]} 32. d6 {[%clk 0:00:14]}  Rd8 {[%clk 0:00:10]} 33. d7 {[%clk 0:00:14]}  Rg7 {[%clk 0:00:09]} 34. Bc6 {[%clk 0:00:15]}  Kf7 {[%clk 0:00:09]} 35. Nf3 {[%clk 0:00:13]}  Rg3 {[%clk 0:00:08]} 36. Rc8 {[%clk 0:00:10]}  Ke7 {[%clk 0:00:08]} 37. Nxe5 {[%clk 0:00:10]}  Rxh3+ {[%clk 0:00:06]} 38. Kg2 {[%clk 0:00:10]}  Re3 {[%clk 0:00:04]} 39. d4 {[%clk 0:00:10]}  Re2+ {[%clk 0:00:02]} 40. Rf2 {[%clk 0:00:10]}  Rxf2+ {[%clk 0:00:02]} 41. Kxf2 {[%clk 0:00:11]}  Nf7 {[%clk 0:00:02]} 42. Ke3 {[%clk 0:00:07]}  Nd6 {[%clk 0:00:02]} 43. Rc7 {[%clk 0:00:07]}  Bf7 {[%clk 0:00:01]} 44. Kf4 {[%clk 0:00:07]}  Nc4 {[%clk 0:00:01]} 45. Kxf5 {[%clk 0:00:05]}  Nxe5 {[%clk 0:00:02]} 46. dxe5 {[%clk 0:00:06]}  Be6+ {[%clk 0:00:03]} 47. Kg5 {[%clk 0:00:06]}  Bxd7 {[%clk 0:00:03]} 48. Rb7 {[%clk 0:00:04]}  Ke6 {[%clk 0:00:04]} 49. Rxb6 {[%clk 0:00:04]}  Kxe5 {[%clk 0:00:04]} 50. Bxd7 {[%clk 0:00:05]}  Rxd7 {[%clk 0:00:05]} 51. Ra6 {[%clk 0:00:05]}  Kd5 {[%clk 0:00:05]} 52. Rxa5 {[%clk 0:00:05]}  Kc5 {[%clk 0:00:06]} 53. Ra6 {[%clk 0:00:06]}  Kb4 {[%clk 0:00:06]} 54. b6 {[%clk 0:00:06]}  Rb7 {[%clk 0:00:06]} 55. a5 {[%clk 0:00:06]}  Kb5 {[%clk 0:00:05]} 56. Ra7 {[%clk 0:00:07]}  Rb8 {[%clk 0:00:05]} 57. b7 {[%clk 0:00:08]}  Kc6 {[%clk 0:00:04]} 58. a6 {[%clk 0:00:08]}  Rg8+ {[%clk 0:00:02]} 59. Kh5 {[%clk 0:00:08]}  Rb8 {[%clk 0:00:01]} 60. Ra8 {[%clk 0:00:08]}  Kc7 {[%clk 0:00:02]} 61. Rxb8 {[%clk 0:00:08]}  Kxb8 {[%clk 0:00:02]} 62. Kh6 {[%clk 0:00:09]}  Ka7 {[%clk 0:00:02]} 63. Kxh7 {[%clk 0:00:09]} 1-0


[Site "https://www.chess.com"]

[Event "Titled Tuesday Blitz December 20 Late 2022"]
[White "Zhigalko, Sergei"]
[Black "Buchenau, Frank"]
[WhiteFideId "13502956"]
[BlackFideId "4604350"]
[WhiteElo "2662"]
[BlackElo "2157"]
[Result "1-0"]
[Round "01"]
[TimeControl "180+1"]
[Date "2022.12.21"]
[WhiteClock "0:00:42"]
[BlackClock "0:00:13"]

1. e4 {[%clk 0:03:00]}  e6 {[%clk 0:02:58]} 2. d4 {[%clk 0:03:00]}  d5 {[%clk 0:02:58]} 3. e5 {[%clk 0:03:01]}  c5 {[%clk 0:02:57]} 4. c3 {[%clk 0:03:01]}  Qb6 {[%clk 0:02:57]} 5. Nf3 {[%clk 0:03:01]}  Bd7 {[%clk 0:02:58]} 6. Be2 {[%clk 0:02:59]}  cxd4 {[%clk 0:02:57]} 7. cxd4 {[%clk 0:02:58]}  Bb5 {[%clk 0:02:57]} 8. Nc3 {[%clk 0:02:57]}  Bxe2 {[%clk 0:02:56]} 9. Nxe2 {[%clk 0:02:58]}  Bb4+ {[%clk 0:02:53]} 10. Kf1 {[%clk 0:02:58]}  Ne7 {[%clk 0:02:52]} 11. a3 {[%clk 0:02:54]}  Qa6 {[%clk 0:02:51]} 12. g3 {[%clk 0:02:53]}  Ba5 {[%clk 0:02:48]} 13. Kg2 {[%clk 0:02:53]}  Nbc6 {[%clk 0:02:38]} 14. h4 {[%clk 0:02:52]}  O-O {[%clk 0:02:29]} 15. h5 {[%clk 0:02:48]}  h6 {[%clk 0:02:28]} 16. Nf4 {[%clk 0:02:40]}  b5 {[%clk 0:02:11]} 17. Be3 {[%clk 0:02:32]}  b4 {[%clk 0:01:54]} 18. axb4 {[%clk 0:02:29]}  Nxb4 {[%clk 0:01:54]} 19. Qa4 {[%clk 0:02:15]}  Nec6 {[%clk 0:01:48]} 20. g4 {[%clk 0:02:10]}  Qb7 {[%clk 0:01:24]} 21. g5 {[%clk 0:02:04]}  hxg5 {[%clk 0:01:20]} 22. Nxg5 {[%clk 0:02:04]}  Bd8 {[%clk 0:01:13]} 23. Nf3 {[%clk 0:01:58]}  Ne7 {[%clk 0:01:10]} 24. Nh4 {[%clk 0:01:41]}  a5 {[%clk 0:00:59]} 25. Qd1 {[%clk 0:01:36]}  Nf5 {[%clk 0:00:52]} 26. Nxf5 {[%clk 0:01:29]}  exf5 {[%clk 0:00:53]} 27. Qf3 {[%clk 0:01:29]}  Bg5 {[%clk 0:00:43]} 28. Rag1 {[%clk 0:01:23]}  Bxf4 {[%clk 0:00:35]} 29. Qxf4 {[%clk 0:01:24]}  Ra6 {[%clk 0:00:31]} 30. Qxf5 {[%clk 0:01:08]}  Qc8 {[%clk 0:00:18]} 31. Qg5 {[%clk 0:00:50]}  Nc2 {[%clk 0:00:13]} 32. Kh2 {[%clk 0:00:42]}  Nxe3 {[%clk 0:00:13]} 33. Qxg7# {[%clk 0:00:42]} 1-0


[Site "https://www.chess.com"]

[Event "Titled Tuesday Blitz December 20 Late 2022"]
[White "Zhukov, Maksim"]
[Black "Lindholt, Malik"]
[WhiteFideId "34181790"]
[BlackFideId "1404490"]
[WhiteElo "1929"]
[BlackElo "2008"]
[Result "1-0"]
[Round "01"]
[TimeControl "180+1"]
[Date "2022.12.21"]
[WhiteClock "0:01:06"]
[BlackClock "0:00:03"]

1. Nf3 {[%clk 0:02:59]}  Nf6 {[%clk 0:02:57]} 2. g3 {[%clk 0:03:00]}  g6 {[%clk 0:02:50]} 3. Bg2 {[%clk 0:03:01]}  Bg7 {[%clk 0:02:44]} 4. O-O {[%clk 0:03:02]}  O-O {[%clk 0:02:40]} 5. d3 {[%clk 0:03:02]}  d6 {[%clk 0:02:36]} 6. e4 {[%clk 0:03:02]}  e5 {[%clk 0:02:34]} 7. c4 {[%clk 0:03:03]}  c5 {[%clk 0:02:33]} 8. Nc3 {[%clk 0:03:02]}  Nc6 {[%clk 0:02:34]} 9. h3 {[%clk 0:03:02]}  Nd4 {[%clk 0:02:32]} 10. Nxd4 {[%clk 0:03:00]}  cxd4 {[%clk 0:02:32]} 11. Nd5 {[%clk 0:03:00]}  Nxd5 {[%clk 0:02:31]} 12. cxd5 {[%clk 0:03:00]}  Bd7 {[%clk 0:02:31]} 13. Bd2 {[%clk 0:02:58]}  Qb6 {[%clk 0:02:31]} 14. Qb3 {[%clk 0:02:58]}  Qxb3 {[%clk 0:02:30]} 15. axb3 {[%clk 0:02:58]}  a6 {[%clk 0:02:30]} 16. Bb4 {[%clk 0:02:58]}  Rfd8 {[%clk 0:02:26]} 17. Rfc1 {[%clk 0:02:53]}  Bb5 {[%clk 0:02:25]} 18. Bf1 {[%clk 0:02:53]}  Rd7 {[%clk 0:02:23]} 19. Bd2 {[%clk 0:02:37]}  Bf8 {[%clk 0:02:21]} 20. h4 {[%clk 0:02:36]}  f6 {[%clk 0:02:21]} 21. Bh3 {[%clk 0:02:36]}  Re7 {[%clk 0:02:19]} 22. Bf1 {[%clk 0:02:30]}  Rd7 {[%clk 0:02:18]} 23. f3 {[%clk 0:02:29]}  h5 {[%clk 0:01:44]} 24. Kf2 {[%clk 0:02:29]}  Kh7 {[%clk 0:01:43]} 25. Bh3 {[%clk 0:02:28]}  Re7 {[%clk 0:01:38]} 26. Ke2 {[%clk 0:02:28]}  Bh6 {[%clk 0:01:31]} 27. Rc2 {[%clk 0:02:10]}  Bxd2 {[%clk 0:01:30]} 28. Kxd2 {[%clk 0:02:11]}  Kg7 {[%clk 0:01:30]} 29. Rac1 {[%clk 0:02:11]}  Kf8 {[%clk 0:01:28]} 30. Rc7 {[%clk 0:02:09]}  Rae8 {[%clk 0:01:28]} 31. Be6 {[%clk 0:02:08]}  Rxc7 {[%clk 0:01:26]} 32. Rxc7 {[%clk 0:02:07]}  Re7 {[%clk 0:01:27]} 33. Rc8+ {[%clk 0:02:03]}  Re8 {[%clk 0:01:27]} 34. Rc7 {[%clk 0:01:52]}  Re7 {[%clk 0:01:27]} 35. Rc1 {[%clk 0:01:53]}  Re8 {[%clk 0:00:59]} 36. f4 {[%clk 0:01:51]}  Re7 {[%clk 0:00:58]} 37. f5 {[%clk 0:01:50]}  gxf5 {[%clk 0:00:54]} 38. exf5 {[%clk 0:01:41]}  Re8 {[%clk 0:00:43]} 39. Rg1 {[%clk 0:01:32]}  Re7 {[%clk 0:00:43]} 40. g4 {[%clk 0:01:32]}  hxg4 {[%clk 0:00:42]} 41. Rxg4 {[%clk 0:01:32]}  Rg7 {[%clk 0:00:43]} 42. Rg6 {[%clk 0:01:30]}  Rxg6 {[%clk 0:00:40]} 43. fxg6 {[%clk 0:01:31]}  Kg7 {[%clk 0:00:40]} 44. h5 {[%clk 0:01:32]}  Kh6 {[%clk 0:00:37]} 45. Bf5 {[%clk 0:01:31]}  a5 {[%clk 0:00:26]} 46. Ke2 {[%clk 0:01:27]}  b6 {[%clk 0:00:27]} 47. Kf3 {[%clk 0:01:27]}  Ba6 {[%clk 0:00:27]} 48. Kg4 {[%clk 0:01:27]}  Bb7 {[%clk 0:00:20]} 49. Be6 {[%clk 0:01:26]}  Kg7 {[%clk 0:00:19]} 50. Kf5 {[%clk 0:01:24]}  Ba6 {[%clk 0:00:18]} 51. h6+ {[%clk 0:01:24]}  Kxh6 {[%clk 0:00:17]} 52. Kxf6 {[%clk 0:01:25]}  Bxd3 {[%clk 0:00:16]} 53. g7 {[%clk 0:01:11]}  Bh7 {[%clk 0:00:16]} 54. Bf5 {[%clk 0:01:10]}  Bg8 {[%clk 0:00:16]} 55. Be4 {[%clk 0:01:08]}  d3 {[%clk 0:00:08]} 56. Bxd3 {[%clk 0:01:06]}  Bxd5 {[%clk 0:00:08]} 57. Bc4 {[%clk 0:01:06]}  Bg8 {[%clk 0:00:03]} 58. Bxg8 {[%clk 0:01:06]}  e4 {[%clk 0:00:03]} 59. Bc4 {[%clk 0:01:06]} 1-0


[Site "https://www.chess.com"]

[Event "Titled Tuesday Blitz December 20 Late 2022"]
[White "gshwbedhkhd"]
[Black "Araujo, Everson De Moura"]
[BlackFideId "22737197"]
[WhiteElo "2589"]
[BlackElo "2035"]
[Result "1-0"]
[Round "01"]
[TimeControl "180+1"]
[Date "2022.12.21"]
[WhiteClock "0:01:52"]
[BlackClock "0:01:27"]

1. e4 {[%clk 0:03:00]}  e6 {[%clk 0:03:00]} 2. d4 {[%clk 0:03:00]}  d5 {[%clk 0:03:01]} 3. Bd3 {[%clk 0:03:00]}  c5 {[%clk 0:03:00]} 4. exd5 {[%clk 0:02:59]}  exd5 {[%clk 0:03:00]} 5. Nf3 {[%clk 0:03:00]}  Nf6 {[%clk 0:03:00]} 6. O-O {[%clk 0:03:00]}  c4 {[%clk 0:03:00]} 7. Re1+ {[%clk 0:02:59]}  Be7 {[%clk 0:03:01]} 8. Bf1 {[%clk 0:02:57]}  Nc6 {[%clk 0:03:00]} 9. b3 {[%clk 0:02:57]}  cxb3 {[%clk 0:03:00]} 10. axb3 {[%clk 0:02:58]}  O-O {[%clk 0:02:58]} 11. h3 {[%clk 0:02:58]}  Ne4 {[%clk 0:02:58]} 12. Bd3 {[%clk 0:02:50]}  Bf5 {[%clk 0:02:50]} 13. c3 {[%clk 0:02:44]}  Re8 {[%clk 0:02:41]} 14. b4 {[%clk 0:02:39]}  a6 {[%clk 0:02:38]} 15. b5 {[%clk 0:02:37]}  axb5 {[%clk 0:02:36]} 16. Rxa8 {[%clk 0:02:38]}  Qxa8 {[%clk 0:02:36]} 17. Bxb5 {[%clk 0:02:38]}  Nxf2 {[%clk 0:02:28]} 18. Kxf2 {[%clk 0:02:28]}  Bxb1 {[%clk 0:02:25]} 19. Bf4 {[%clk 0:02:23]}  Be4 {[%clk 0:02:22]} 20. Ne5 {[%clk 0:02:14]}  Bh4+ {[%clk 0:02:09]} 21. g3 {[%clk 0:02:14]}  Bf6 {[%clk 0:02:06]} 22. Qb3 {[%clk 0:02:09]}  Qc8 {[%clk 0:01:49]} 23. Rxe4 {[%clk 0:01:56]}  dxe4 {[%clk 0:01:40]} 24. Nxf7 {[%clk 0:01:56]}  Qe6 {[%clk 0:01:34]} 25. Bc4 {[%clk 0:01:53]}  Qxh3 {[%clk 0:01:27]} 26. Ng5+ {[%clk 0:01:52]} 1-0


[Site "https://www.chess.com"]